fUST/lending_fUST_20250601
["ID","MTS","AMOUNT","RATE_DAILY","PERIOD"]
[363541663,1748758248825,-430.0,0.00019452,2]
[363541664,1748758248835,-258.18886446,0.00019452,2]
[363541665,1748758248846,-261.96,0.00019452,2]
[363541666,1748758248856,-578.95,0.00019452,2]
[363541667,1748758248867,-430.0,0.00019452,2]
[363541668,1748758248878,-430.0,0.00019452,2]
[363541669,1748758248888,-1206.21,0.00019452,2]
[363541670,1748758248902,-1027.68,0.00019452,2]
[363541671,1748758248914,-1160.36,0.00019452,2]
[363541672,1748758248924,-430.0,0.00019452,2]
[363541673,1748758249053,-280.67654031,0.00019452,2]
[363541674,1748758249064,-622.09,0.00019452,2]
[363541675,1748758249074,-430.0,0.00019452,2]
[363541676,1748758249085,-1594.13,0.00019452,2]
[363541677,1748758249094,-754.86,0.00019452,2]
[363541678,1748758249104,-166.65485504,0.00019453,2]
[363541679,1748758249115,-1007.595981,0.00019555,2]
[363541680,1748758249125,-300.0,0.00019653,2]
[363541681,1748758249135,-300.0,0.00019653,2]
[363541682,1748758249149,-300.0,0.00019653,2]
[363541683,1748758249159,-300.0,0.00019653,2]
[363541684,1748758249169,-300.0,0.00019653,2]
[363541685,1748758249179,-207.4,0.00019653,2]
[363541686,1748758249188,-300.0,0.00019653,2]
[363541687,1748758249198,-300.0,0.00019653,2]
[363541688,1748758249208,-300.0,0.00019653,2]
[363541689,1748758249217,-300.0,0.00019653,2]
[363541690,1748758249227,-300.0,0.00019653,2]
[363541691,1748758249237,-300.0,0.00019653,2]
[363541692,1748758249248,-300.0,0.00019653,2]
[363541693,1748758249258,-300.0,0.00019653,2]
[363541694,1748758249267,-300.0,0.00019653,2]
[363541695,1748758249277,-300.0,0.00019653,2]
[363541696,1748758249287,-430.0,0.00019726,2]
[363541697,1748758249297,-151.0,0.00019726,2]
[363541698,1748758249306,-5089.99,0.00019726,2]
[363541699,1748758249315,-969.35,0.00019726,2]
[363541700,1748758249324,-1428.53,0.00019726,2]
[363541701,1748758249335,-430.0,0.00019726,2]
[363541702,1748758249345,-430.0,0.00019726,2]
[363541703,1748758249355,-430.0,0.00019726,2]
[363541704,1748758249365,-430.0,0.00019726,2]
[363541705,1748758249375,-631.35,0.00019726,2]
[363541706,1748758249384,-439.73,0.00019726,2]
[363541707,1748758249394,-430.0,0.00019726,2]
[363541708,1748758249404,-430.0,0.00019726,2]
[363541709,1748758249414,-621.65,0.00019726,2]
[363541710,1748758249424,-544.27071537,0.00019726,2]
[363541711,1748758249433,-430.0,0.00019726,2]
[363541712,1748758249443,-374.07,0.00019726,2]
[363541713,1748758249453,-430.0,0.00019726,2]
[363541714,1748758249465,-430.0,0.00019726,2]
[363541715,1748758249475,-151.0,0.00019726,2]
[363541716,1748758249485,-151.0,0.00019726,2]
[363541717,1748758249494,-430.0,0.00019726,2]
[363541718,1748758249503,-151.0,0.00019726,2]
[363541719,1748758249513,-430.0,0.00019726,2]
[363541720,1748758249523,-500.73,0.00019726,2]
[363541721,1748758249533,-430.0,0.00019726,2]
[363541722,1748758249543,-430.0,0.00019726,2]
[363541723,1748758249553,-430.0,0.00019726,2]
[363541724,1748758249564,-765.07,0.00019726,2]
[363541725,1748758249574,-430.0,0.00019726,2]
[363541726,1748758249583,-430.0,0.00019726,2]
[363541727,1748758249593,-578.95,0.00019726,2]
[363541728,1748758249602,-430.0,0.00019726,2]
[363541729,1748758249612,-430.0,0.00019726,2]
[363541730,1748758249622,-1206.21,0.00019726,2]
[363541731,1748758249631,-1027.68,0.00019726,2]
[363541732,1748758249641,-901.396977,0.00019726,2]
[363541733,1748758249654,-1160.36,0.00019726,2]
[363541734,1748758249664,-901.396977,0.00019726,2]
[363541735,1748758249673,-430.0,0.00019726,2]
[363541736,1748758249683,-622.09,0.00019726,2]
[363541737,1748758249693,-430.0,0.00019726,2]
[363541738,1748758249702,-1594.13,0.00019726,2]
[363541739,1748758249712,-754.86,0.00019726,2]
[363541740,1748758249722,-500.0,0.00019769,2]
[363541741,1748758249732,-305.31020719,0.00019783,2]
[363541742,1748758249741,-1007.595981,0.00019797,2]
[363541743,1748758249752,-5000.0,0.000198,3]
[363541744,1748758249762,-2182.06,0.00019826,2]
[363541745,1748758249772,-156.960422,0.0002,2]
[363541746,1748758249782,-156.960422,0.0002,2]
[363541747,1748758249792,-430.0,0.0002,2]
[363541748,1748758249802,-200.864558,0.0002,2]
[363541749,1748758249812,-151.0,0.0002,2]
[363541750,1748758249822,-151.0,0.0002,2]
[363541751,1748758249832,-189.533287,0.0002,2]
[363541752,1748758249842,-189.533287,0.0002,2]
[363541753,1748758249852,-151.0,0.0002,2]
[363541754,1748758249861,-5089.99,0.0002,2]
[363541755,1748758249871,-969.35,0.0002,2]
[363541756,1748758249882,-1428.53,0.0002,2]
[363541757,1748758249893,-361.75,0.0002,2]
[363541758,1748758249904,-430.0,0.0002,2]
[363541759,1748758249913,-430.0,0.0002,2]
[363541760,1748758249924,-430.0,0.0002,2]
[363541761,1748758249935,-631.35,0.0002,2]
[363541762,1748758249944,-439.73,0.0002,2]
[363541763,1748758249954,-430.0,0.0002,2]
[363541764,1748758249964,-361.44018739,0.0002,2]
[363541765,1748758249973,-621.65,0.0002,2]
[363541766,1748758249983,-537.41,0.0002,2]
[363541767,1748758249993,-430.0,0.0002,2]
[363541768,1748758250003,-430.0,0.0002,2]
[363541769,1748758250012,-430.0,0.0002,2]
[363541770,1748758250022,-430.0,0.0002,2]
[363541771,1748758250032,-500.73,0.0002,2]
[363541772,1748758250042,-348.69,0.0002,2]
[363541773,1748758250052,-430.0,0.0002,2]
[363541774,1748758250062,-430.0,0.0002,2]
[363541775,1748758250073,-765.07,0.0002,2]
[363541776,1748758250083,-430.0,0.0002,2]
[363541777,1748758250092,-430.0,0.0002,2]
[363541778,1748758250102,-578.95,0.0002,2]
[363541779,1748758250112,-308.87,0.0002,2]
[363541780,1748758250121,-430.0,0.0002,2]
[363541781,1748758250131,-1206.21,0.0002,2]
[363541782,1748758250141,-1027.68,0.0002,2]
[363541783,1748758250152,-1160.36,0.0002,2]
[363541784,1748758250161,-430.0,0.0002,2]
[363541785,1748758250172,-622.09,0.0002,2]
[363541786,1748758250182,-430.0,0.0002,2]
[363541787,1748758250192,-1594.13,0.0002,2]
[363541788,1748758250202,-754.86,0.0002,2]
[363541789,1748758250213,-1007.595981,0.00020038,2]
[363541790,1748758250222,-671.629063,0.00020187,2]
[363541791,1748758250233,-500.0,0.0002026,2]
[363541792,1748758250243,-430.0,0.00020273,2]
[363541793,1748758250252,-5089.99,0.00020273,2]
[363541794,1748758250262,-969.35,0.00020273,2]
[363541795,1748758250273,-1428.53,0.00020273,2]
[363541796,1748758250282,-430.0,0.00020273,2]
[363541797,1748758250292,-430.0,0.00020273,2]
[363541798,1748758250302,-430.0,0.00020273,2]
[363541799,1748758250312,-631.35,0.00020273,2]
[363541800,1748758250322,-439.73,0.00020273,2]
[363541801,1748758250332,-375.36672717,0.00020273,2]
[363541802,1748758250343,-621.65,0.00020273,2]
[363541803,1748758250353,-430.0,0.00020273,2]
[363541804,1748758250363,-520.86,0.00020273,2]
[363541805,1748758250372,-430.0,0.00020273,2]
[363541806,1748758250382,-503.38431858,0.00020273,2]
[363541807,1748758250391,-500.73,0.00020273,2]
[363541808,1748758250401,-430.0,0.00020273,2]
[363541809,1748758250411,-204.8436684,0.00020273,2]
[363541810,1748758250421,-293.67578366,0.00020273,2]
[363541811,1748758250591,-292.7075,0.00020273,2]
[363541812,1748758250608,-178.68671634,0.00020273,2]
[363541813,1748758250618,-430.0,0.00020273,2]
[363541814,1748758250628,-430.0,0.00020273,2]
[363541815,1748758250637,-578.95,0.00020273,2]
[363541816,1748758250647,-430.0,0.00020273,2]
[363541817,1748758250657,-1206.21,0.00020273,2]
[363541818,1748758250667,-1027.68,0.00020273,2]
[363541819,1748758250676,-1160.36,0.00020273,2]
[363541820,1748758250686,-430.0,0.00020273,2]
[363541821,1748758250696,-622.09,0.00020273,2]
[363541822,1748758250705,-430.0,0.00020273,2]
[363541823,1748758250715,-1594.13,0.00020273,2]
[363541824,1748758250725,-754.86,0.00020273,2]
[363541825,1748758250736,-1007.595981,0.00020279,3]
[363541826,1748758250745,-301.0,0.00020342,2]
[363541827,1748758250755,-1007.595981,0.00020521,3]
[363541828,1748758250766,-160.0,0.00020532,4]
[363541829,1748758250776,-357.92622,0.00020547,2]
[363541830,1748758250785,-357.92622,0.00020547,2]
[363541831,1748758250795,-151.0,0.00020547,2]
[363541832,1748758250806,-151.0,0.00020547,2]
[363541833,1748758250816,-300.170985,0.00020547,2]
[363541834,1748758250826,-300.170985,0.00020547,2]
[363541835,1748758250836,-430.0,0.00020547,2]
[363541836,1748758250846,-151.0,0.00020547,2]
[363541837,1748758250856,-294.788501,0.00020547,2]
[363541838,1748758250866,-294.788501,0.00020547,2]
[363541839,1748758250875,-273.238575,0.00020547,2]
[363541840,1748758250885,-273.238575,0.00020547,2]
[363541841,1748758250895,-280.218405,0.00020547,2]
[363541842,1748758250906,-280.218405,0.00020547,2]
[363541843,1748758250916,-393.79808,0.00020547,2]
[363541844,1748758250926,-393.79808,0.00020547,2]
[363541845,1748758250936,-5089.99,0.00020547,2]
[363541846,1748758250946,-265.20677449,0.00020547,2]
[363541847,1748758251145,-376.1391984,0.00016986,2]
[363541848,1748758251161,-107.6108016,0.00016986,2]
[363541849,1748758251171,-483.75,0.0001726,2]
[363541850,1748758251181,-215.45120324,0.00017534,2]
[363541851,1748758251192,-268.29879676,0.00017534,2]
[363541852,1748758251202,-483.75,0.00017808,2]
[363541853,1748758251211,-47.95120324,0.00018082,2]
[363541854,1748758251285,-430.0,0.00016438,2]
[363541855,1748758251296,-430.0,0.00016712,2]
[363541856,1748758251305,-385.97452362,0.00016712,2]
[363541857,1748758251315,-435.79879676,0.00018082,2]
[363541858,1748758251324,-453.75961522,0.00018356,2]
[363541859,1748758293573,1577.01125838,0.00015,2]
[363541860,1748758315211,157.42707701,6.8e-07,2]
[363541861,1748758315454,157.42707701,6.8e-07,2]
[363541862,1748758315487,157.42707701,6.8e-07,2]
[363541863,1748758315525,157.42707701,6.8e-07,2]
[363541864,1748758315646,157.42707701,6.8e-07,2]
[363541865,1748758315743,157.42707701,6.8e-07,2]
[363541866,1748758315844,157.42707701,6.8e-07,2]
[363541867,1748758315951,157.42707701,6.8e-07,2]
[363541868,1748758368185,1955.16551785,0.00015,2]
[363541869,1748758368209,160.9701606,0.00015,2]
[363541871,1748758589299,6141.6912896,0.00014406,2]
[363541872,1748758604447,671.588242,0.00013699,2]
[363541874,1748758616556,157.42707704,6.8e-07,2]
[363541875,1748758617618,3567.25781918,0.00015,2]
[363541876,1748758678019,204.22330632,0.00015,2]
[363541877,1748758678215,4217.32946364,0.00015,2]
[363541878,1748758737946,3792.95092332,0.00015,2]
[363541879,1748758755948,28067.79,0.00021917,60]
[363541881,1748758796201,2892.87750778,0.00015,2]
[363541882,1748758796225,23.30858527,0.00015,2]
[363541883,1748758856040,2907.17290682,0.00015,2]
[363541884,1748758871160,250.5489189,0.00014387,2]
[363541885,1748758875125,1830.089398,0.00014387,2]
[363541892,1748758939992,765.3183213,0.00014387,2]
[363541973,1748758988807,1227.30012068,0.00015,2]
[363541975,1748759062138,1328.46305847,0.00015,2]
[363541981,1748759120934,965.59875434,0.00015,2]
[363541987,1748759193932,1005.54086455,0.00015,2]
[363541989,1748759217440,157.42707701,6.8e-07,2]
[363541990,1748759217749,157.42707701,6.8e-07,2]
[363541992,1748759237174,-300.0,0.00015139,2]
[363541993,1748759237197,-300.0,0.0001514,2]
[363541994,1748759237219,-300.0,0.0001514,2]
[363541995,1748759237241,-300.0,0.0001514,2]
[363541996,1748759237264,-696.17356659,0.0001514,2]
[363541997,1748759267181,161.09416152,0.000246,120]
[363542001,1748759291333,284.96281239,0.00010618,2]
[363542002,1748759291362,126.8672992,0.00010618,2]
[363542004,1748759312650,469.20618435,0.00015,2]
[363542005,1748759314276,1289.00864193,0.00024,120]
[363542007,1748759317860,816.69346725,0.0002,120]
[363542010,1748759319548,1804.19315416,0.00015,2]
[363542015,1748759321994,332.55984873,0.0002191,120]
[363542033,1748759360139,-503.82643341,0.0001514,2]
[363542034,1748759360163,-300.0,0.0001514,2]
[363542035,1748759360186,-275.5,0.00015141,2]
[363542036,1748759360208,-4868.0,0.00015141,2]
[363542037,1748759360231,-174.5192662,0.00015141,2]
[363542038,1748759360253,-255.0,0.000152,2]
[363542039,1748759360277,-511.03031737,0.000152,2]
[363542040,1748759360300,-500.0,0.000152,2]
[363542041,1748759360324,-175.20065219,0.000152,2]
[363542042,1748759360351,-500.0,0.000152,2]
[363542043,1748759360375,-500.0,0.000152,2]
[363542044,1748759360400,-500.0,0.000152,2]
[363542045,1748759360425,-500.0,0.000152,2]
[363542046,1748759360449,-326.26335004,0.000152,2]
[363542048,1748759387357,2175.51809815,0.00015,2]
[363542102,1748759432065,-300.0,0.00015199,2]
[363542104,1748759432076,-1200.0,0.00015199,2]
[363542106,1748759432086,-255.0,0.000152,2]
[363542108,1748759432096,-5300.96194088,0.000152,2]
[363542110,1748759432111,-6078.00836081,0.000152,2]
[363542113,1748759432123,-605.45,0.000152,2]
[363542119,1748759432143,-481.84569023,0.000152,2]
[363542183,1748759437839,-388.13637237,0.000152,2]
[363542201,1748759438006,-37145.59763571,0.000152,2]
[363542203,1748759438017,-173.73664996,0.000152,2]
[363542205,1748759438026,-500.0,0.000152,2]
[363542207,1748759438036,-500.0,0.000152,2]
[363542209,1748759438045,-500.0,0.000152,2]
[363542211,1748759438055,-500.0,0.000152,2]
[363542213,1748759438064,-353.31855793,0.000152,2]
[363542216,1748759438074,-500.0,0.000152,2]
[363542218,1748759438084,-500.0,0.000152,2]
[363542220,1748759438093,-500.0,0.000152,2]
[363542222,1748759438103,-183.62256045,0.000152,2]
[363542224,1748759438112,-500.0,0.000152,2]
[363542226,1748759438122,-500.0,0.000152,2]
[363542228,1748759438132,-500.0,0.000152,2]
[363542230,1748759438141,-500.0,0.000152,2]
[363542232,1748759438151,-500.0,0.000152,2]
[363542234,1748759438161,-500.0,0.000152,2]
[363542236,1748759438170,-500.0,0.000152,2]
[363542238,1748759438180,-500.0,0.000152,2]
[363542240,1748759438190,-500.0,0.000152,2]
[363542242,1748759438199,-380.6286891,0.000152,2]
[363542244,1748759438208,-255.0,0.00015201,2]
[363542246,1748759438217,-255.0,0.00015202,2]
[363542248,1748759438227,-255.0,0.00015203,2]
[363542251,1748759438237,-255.0,0.00015204,2]
[363542253,1748759438247,-255.0,0.00015205,2]
[363542254,1748759438256,-255.0,0.00015206,2]
[363542257,1748759438266,-255.0,0.00015207,2]
[363542259,1748759438276,-255.0,0.00015208,2]
[363542261,1748759438286,-255.0,0.00015209,2]
[363542263,1748759438295,-255.0,0.0001521,2]
[363542265,1748759438305,-255.0,0.00015211,2]
[363542267,1748759438314,-255.0,0.00015212,2]
[363542269,1748759438323,-255.0,0.00015213,2]
[363542271,1748759438333,-255.0,0.00015214,2]
[363542273,1748759438342,-193.46574683,0.00015301,2]
[363542275,1748759438351,-4358.4529988,0.00015323,2]
[363542277,1748759438361,-500.0,0.00015399,2]
[363542279,1748759438372,-500.0,0.00015399,2]
[363542281,1748759438381,-500.0,0.00015399,2]
[363542283,1748759438391,-500.0,0.00015399,2]
[363542285,1748759438400,-273.86297644,0.00015399,2]
[363542287,1748759438409,-500.0,0.00015399,2]
[363542289,1748759438419,-500.0,0.00015399,2]
[363542291,1748759438428,-500.0,0.00015399,2]
[363542293,1748759438437,-500.0,0.00015399,2]
[363542295,1748759438447,-500.0,0.00015399,2]
[363542297,1748759438458,-500.0,0.00015399,2]
[363542299,1748759438467,-500.0,0.00015399,2]
[363542301,1748759438477,-500.0,0.00015399,2]
[363542303,1748759438486,-500.0,0.00015399,2]
[363542305,1748759438496,-886.672896,0.00015399,2]
[363542307,1748759438506,-886.672896,0.00015399,2]
[363542309,1748759438518,-886.672896,0.00015399,2]
[363542311,1748759438528,-886.672896,0.00015399,2]
[363542313,1748759438537,-886.672896,0.00015399,2]
[363542315,1748759438547,-886.672896,0.00015399,2]
[363542317,1748759438556,-886.672896,0.00015399,2]
[363542319,1748759438566,-932.1856271,0.00015399,2]
[363542321,1748759438575,-932.1856271,0.00015399,2]
[363542323,1748759438584,-932.1856271,0.00015399,2]
[363542325,1748759438594,-932.1856271,0.00015399,2]
[363542327,1748759438604,-932.1856271,0.00015399,2]
[363542329,1748759438613,-932.1856271,0.00015399,2]
[363542331,1748759438622,-1025.40418979,0.00015399,2]
[363542333,1748759438631,-1025.40418979,0.00015399,2]
[363542335,1748759438641,-177.79823368,0.00015399,2]
[363542337,1748759438650,-160.0,0.00015405,2]
[363542339,1748759438660,-21092.7325738,0.00015802,2]
[363542341,1748759438670,-2339.80388968,0.00016338,2]
[363542343,1748759438680,-550.0,0.00016438,2]
[363542345,1748759438690,-430.0,0.00016438,2]
[363542348,1748759438700,-404.06225939,0.00016438,2]
[363542350,1748759438711,-430.0,0.00016438,2]
[363542352,1748759438720,-430.0,0.00016438,2]
[363542354,1748759438729,-430.34784058,0.00016438,2]
[363542356,1748759438738,-430.0,0.00016438,2]
[363542358,1748759438748,-505.16557723,0.00016438,2]
[363542360,1748759438757,-430.0,0.00016438,2]
[363542362,1748759438773,-430.0,0.00016438,2]
[363542364,1748759438783,-430.0,0.00016438,2]
[363542366,1748759438792,-430.0,0.00016438,2]
[363542368,1748759438802,-430.0,0.00016438,2]
[363542370,1748759438811,-430.0,0.00016438,2]
[363542372,1748759438820,-430.0,0.00016438,2]
[363542374,1748759438830,-430.0,0.00016438,2]
[363542376,1748759438839,-430.0,0.00016438,2]
[363542378,1748759438849,-430.0,0.00016438,2]
[363542380,1748759438859,-1000.0,0.00016438,2]
[363542382,1748759438869,-430.0,0.00016438,2]
[363542384,1748759438879,-430.0,0.00016438,2]
[363542386,1748759438888,-430.0,0.00016438,2]
[363542388,1748759438897,-430.0,0.00016438,2]
[363542390,1748759438906,-430.0,0.00016438,2]
[363542392,1748759438916,-511.0270788,0.00016438,2]
[363542394,1748759438925,-430.0,0.00016438,2]
[363542396,1748759438935,-430.0,0.00016438,2]
[363542398,1748759438944,-430.0,0.00016438,2]
[363542400,1748759438953,-430.0,0.00016438,2]
[363542402,1748759438962,-400.0,0.00016438,2]
[363542404,1748759438971,-430.0,0.00016438,2]
[363542406,1748759438981,-430.0,0.00016438,2]
[363542408,1748759438991,-430.0,0.00016438,2]
[363542410,1748759439000,-430.0,0.00016438,2]
[363542412,1748759439010,-430.0,0.00016438,2]
[363542414,1748759439019,-372.40043543,0.00016438,2]
[363542416,1748759439029,-430.0,0.00016438,2]
[363542418,1748759439038,-430.0,0.00016438,2]
[363542420,1748759439047,-430.0,0.00016438,2]
[363542422,1748759439057,-430.0,0.00016438,2]
[363542424,1748759439066,-430.0,0.00016438,2]
[363542426,1748759439076,-430.0,0.00016438,2]
[363542428,1748759439086,-430.0,0.00016438,2]
[363542430,1748759439095,-430.0,0.00016438,2]
[363542432,1748759439105,-430.0,0.00016438,2]
[363542434,1748759439114,-432.53819276,0.00016438,2]
[363542436,1748759439123,-430.0,0.00016438,2]
[363542438,1748759439133,-430.0,0.00016438,2]
[363542440,1748759439142,-430.0,0.00016438,2]
[363542442,1748759439151,-430.0,0.00016438,2]
[363542444,1748759439161,-430.37016652,0.00016438,2]
[363542446,1748759439171,-430.0,0.00016438,2]
[363542448,1748759439181,-430.0,0.00016438,2]
[363542450,1748759439191,-430.0,0.00016438,2]
[363542452,1748759439201,-430.0,0.00016438,2]
[363542454,1748759439210,-430.0,0.00016438,2]
[363542456,1748759439220,-430.0,0.00016438,2]
[363542458,1748759439230,-430.0,0.00016438,2]
[363542460,1748759439239,-430.426035,0.00016438,2]
[363542462,1748759439250,-430.0,0.00016438,2]
[363542464,1748759439261,-430.0,0.00016438,2]
[363542466,1748759439270,-430.0,0.00016438,2]
[363542468,1748759439280,-443.89421109,0.00016438,2]
[363542470,1748759439290,-430.0,0.00016438,2]
[363542472,1748759439300,-2545.0,0.00016438,2]
[363542474,1748759439310,-430.0,0.00016438,2]
[363542476,1748759439320,-401.19127674,0.00016438,2]
[363542478,1748759439330,-430.0,0.00016438,2]
[363542480,1748759439340,-430.0,0.00016438,2]
[363542483,1748759439350,-430.0,0.00016438,2]
[363542485,1748759439360,-430.84065571,0.00016438,2]
[363542487,1748759439370,-430.0,0.00016438,2]
[363542489,1748759439380,-430.0,0.00016438,2]
[363542491,1748759439390,-430.0,0.00016438,2]
[363542494,1748759439400,-430.0,0.00016438,2]
[363542496,1748759439412,-401.78334909,0.00016438,2]
[363542498,1748759439423,-430.0,0.00016438,2]
[363542500,1748759439434,-400.0,0.00016438,2]
[363542502,1748759439444,-430.7358873,0.00016438,2]
[363542504,1748759439455,-430.0,0.00016438,2]
[363542506,1748759439465,-401.56777746,0.00016438,2]
[363542508,1748759439475,-240.33,0.00016438,2]
[363542510,1748759439486,-292.28114959,0.00016438,2]
[363542512,1748759439496,-430.0,0.00016438,2]
[363542513,1748759439505,-430.0,0.00016438,2]
[363542514,1748759439517,-430.0,0.00016438,2]
[363542515,1748759439526,-430.0,0.00016438,2]
[363542516,1748759439535,-430.0,0.00016438,2]
[363542517,1748759439545,-430.0,0.00016438,2]
[363542518,1748759439554,-430.0,0.00016438,2]
[363542519,1748759439564,-235.38494211,0.00016438,2]
[363542520,1748759439573,-432.85543046,0.00016438,2]
[363542521,1748759439583,-430.0,0.00016438,2]
[363542522,1748759439594,-430.0,0.00016438,2]
[363542523,1748759439604,-430.0,0.00016438,2]
[363542524,1748759439615,-576.35621463,0.00016438,2]
[363542525,1748759439625,-430.0,0.00016438,2]
[363542527,1748759439637,-430.0,0.00016438,2]
[363542528,1748759439646,-430.0,0.00016438,2]
[363542530,1748759439656,-430.0,0.00016438,2]
[363542532,1748759439666,-430.0,0.00016438,2]
[363542534,1748759439676,-430.0,0.00016438,2]
[363542537,1748759439688,-434.15578094,0.00016438,2]
[363542539,1748759439697,-430.0,0.00016438,2]
[363542540,1748759439707,-430.0,0.00016438,2]
[363542543,1748759439717,-430.0,0.00016438,2]
[363542545,1748759439727,-430.0,0.00016438,2]
[363542547,1748759439737,-430.0,0.00016438,2]
[363542549,1748759439746,-430.0,0.00016438,2]
[363542551,1748759439757,-430.0,0.00016438,2]
[363542553,1748759439767,-430.0,0.00016438,2]
[363542554,1748759439777,-430.0,0.00016438,2]
[363542556,1748759439786,-432.97044449,0.00016438,2]
[363542558,1748759439796,-430.0,0.00016438,2]
[363542560,1748759439806,-430.72998668,0.00016438,2]
[363542562,1748759439815,-430.8159445,0.00016438,2]
[363542564,1748759439824,-430.0,0.00016438,2]
[363542566,1748759439834,-430.0,0.00016438,2]
[363542568,1748759439843,-430.0,0.00016438,2]
[363542570,1748759439853,-430.0,0.00016438,2]
[363542572,1748759439863,-450.9518933,0.00016438,2]
[363542574,1748759439873,-430.0,0.00016438,2]
[363542577,1748759439882,-359.20448607,0.00016438,2]
[363542578,1748759439892,-430.0,0.00016438,2]
[363542581,1748759439901,-430.0,0.00016438,2]
[363542583,1748759439911,-430.0,0.00016438,2]
[363542585,1748759439920,-430.0,0.00016438,2]
[363542587,1748759439930,-430.0,0.00016438,2]
[363542588,1748759439940,-430.0,0.00016438,2]
[363542591,1748759439949,-430.0,0.00016438,2]
[363542592,1748759439959,-430.0,0.00016438,2]
[363542594,1748759439968,-430.88753022,0.00016438,2]
[363542596,1748759439977,-430.0,0.00016438,2]
[363542598,1748759439986,-430.0,0.00016438,2]
[363542600,1748759439996,-430.0,0.00016438,2]
[363542602,1748759440006,-432.65170846,0.00016438,2]
[363542604,1748759440015,-430.0,0.00016438,2]
[363542606,1748759440024,-431.18080772,0.00016438,2]
[363542608,1748759440034,-400.0,0.00016438,2]
[363542610,1748759440044,-430.0,0.00016438,2]
[363542612,1748759440053,-430.0,0.00016438,2]
[363542614,1748759440063,-430.0,0.00016438,2]
[363542617,1748759440074,-430.0,0.00016438,2]
[363542619,1748759440083,-430.0,0.00016438,2]
[363542620,1748759440094,-430.0,0.00016438,2]
[363542623,1748759440103,-430.0,0.00016438,2]
[363542625,1748759440113,-430.0,0.00016438,2]
[363542627,1748759440123,-401.70462869,0.00016438,2]
[363542629,1748759440133,-501.28122029,0.00016438,2]
[363542646,1748759440291,-430.0,0.00016438,2]
[363542648,1748759440302,-406.96988158,0.00016438,2]
[363542650,1748759440311,-430.0,0.00016438,2]
[363542652,1748759440321,-430.0,0.00016438,2]
[363542654,1748759440331,-470.0,0.00016438,2]
[363542656,1748759440341,-430.0,0.00016438,2]
[363542658,1748759440351,-261.05393741,0.00016438,2]
[363542661,1748759440362,-430.0,0.00016438,2]
[363542663,1748759440372,-430.0,0.00016438,2]
[363542665,1748759440381,-430.0,0.00016438,2]
[363542667,1748759440391,-430.0,0.00016438,2]
[363542669,1748759440401,-431.38333215,0.00016438,2]
[363542671,1748759440411,-264.49710687,0.00016438,2]
[363542673,1748759440420,-430.0,0.00016438,2]
[363542675,1748759440430,-430.0,0.00016438,2]
[363542676,1748759440439,-430.0,0.00016438,2]
[363542679,1748759440449,-430.0,0.00016438,2]
[363542681,1748759440459,-430.0,0.00016438,2]